fUST/lending_fUST_20240707
["ID","MTS","AMOUNT","RATE_DAILY","PERIOD"]
[331370027,1720289442166,-500.0,0.00041084,31]
[331370028,1720289442175,-6842.98438826,0.00041084,31]
[331370029,1720289442188,-1500.0,0.00041084,31]
[331370032,1720289446672,-172.78181987,0.00038664,4]
[331370035,1720289446682,-326.99845745,0.00040278,4]
[331370038,1720289446694,-468.09683016,0.00040278,4]
[331370040,1720289446704,-402.7993587,0.00040999,4]
[331370042,1720289446714,-498.49784578,0.00041084,31]
[331370047,1720289446727,-10109.87563437,0.00041084,31]
[331370053,1720289446739,-29701.66114406,0.00041084,31]
[331370055,1720289446748,-328.94155864,0.00041085,5]
[331370088,1720289451248,-1154.22246246,0.00041085,5]
[331370089,1720289451862,-962.96577273,0.00036351,4]
[331370090,1720289451872,-281.0184868,0.00038999,4]
[331370091,1720289451882,-16616.01574047,0.00041085,5]
[331370092,1720289497047,796.81782989,0.00029389,30]
[331370098,1720289942915,185.972481,0.00026575,19]
[331370099,1720289960448,185.972478,0.00026575,19]
[331370122,1720290435218,-171.031023,0.00021096,2]
[331370123,1720290435266,-300.0,0.00026574,2]
[331370124,1720290435303,-300.0,0.00026574,2]
[331370125,1720290435348,-31.250016,0.00026575,2]
[331370265,1720290641142,-300.0,0.00026574,2]
[331370266,1720290641180,-732.07324628,0.00026575,2]
[331370268,1720290641191,-235.28525544,0.00026575,2]
[331370270,1720290641203,-154.88383712,0.00026575,2]
[331370272,1720290641225,-248.17713803,0.00026575,2]
[331370277,1720290641244,-5774.11949268,0.00026575,2]
[331370279,1720290641275,-3490.23377833,0.00026575,2]
[331370281,1720290641289,-683.33618277,0.00026575,2]
[331370282,1720290641300,-163.95494691,0.00026575,2]
[331370284,1720290641314,-840.24573238,0.00026575,2]
[331370287,1720290641369,-1573.10022776,0.00026634,2]
[331370288,1720290641387,-10252.91509504,0.00026634,2]
[331370289,1720290641429,-582.41753839,0.00026634,2]
[331370290,1720290641472,-705.39167507,0.00026634,2]
[331370291,1720290641485,-1375.0619425,0.00026634,2]
[331370292,1720290643289,-10411.11352124,0.00026634,2]
[331370293,1720290643307,-431.7027659,0.00026679,2]
[331370295,1720290643322,-166.666666,0.00026692,2]
[331370298,1720290643342,-250.0,0.00027026,2]
[331370300,1720290643386,-171.031023,0.00027195,2]
[331370301,1720290643418,-166.666666,0.00027419,2]
[331370302,1720290643449,-166.666666,0.00028147,2]
[331370303,1720290643460,-166.666666,0.00028875,2]
[331370304,1720290643472,-223.0,0.00029231,2]
[331370305,1720290643500,-8793.0526,0.00029399,30]
[331370306,1720290643510,-166.666666,0.00029602,2]
[331370307,1720290643539,-13578.69305099,0.00029793,2]
[331370308,1720290643562,-242.17810807,0.00029803,2]
[331370309,1720290643616,-1560.22,0.00029803,3]
[331370310,1720290643645,-252.35104302,0.00029812,2]
[331370311,1720290643676,-500.0,0.00029812,2]
[331370312,1720290643702,-500.0,0.00029812,2]
[331370313,1720290643738,-500.0,0.00029812,2]
[331370314,1720290643763,-500.0,0.00029812,2]
[331370315,1720290643776,-45816.63026436,0.00029813,2]
[331370316,1720290643788,-908.54949828,0.00029823,2]
[331370317,1720290643801,-94669.6037232,0.00029869,3]
[331370318,1720290643827,-155.1618612,0.00029879,2]
[331370319,1720290643841,-523.68456754,0.00029901,2]
[331370320,1720290643856,-523.68456754,0.00029901,2]
[331370321,1720290643880,-214.18723696,0.00029904,2]
[331370322,1720290643928,-1597.25650539,0.00029904,7]
[331370323,1720290643940,-155.24870781,0.00029979,2]
[331370324,1720290643968,-179.85455723,0.00029999,2]
[331370325,1720290643993,-170.35079036,0.0003,4]
[331370326,1720290644005,-642.9488218,0.0003,4]
[331370327,1720290644040,-322.0,0.0003,2]
[331370328,1720290644051,-301.78747622,0.00030229,4]
[331370329,1720290644073,-360.68182567,0.00030229,7]
[331370330,1720290644086,-166.666666,0.0003033,2]
[331370331,1720290644099,-284.76615511,0.00032212,4]
[331370332,1720290644110,-252.16904731,0.00032212,4]
[331370333,1720290644138,-3807.56710353,0.00032212,120]
[331370334,1720290644179,-185.972481,0.00033016,30]
[331370335,1720290644198,-185.972481,0.00033029,30]
[331370336,1720290644212,-171.031023,0.00033295,2]
[331370338,1720290644233,-7222.57533733,0.00034418,4]
[331370340,1720290644249,-500.0,0.00034542,7]
[331370342,1720290644266,-500.0,0.00034542,7]
[331370345,1720290644286,-461.09264391,0.00034542,7]
[331370346,1720290644297,-595.77827116,0.00034542,7]
[331370347,1720290644309,-500.0,0.00034542,7]
[331370350,1720290644324,-500.0,0.00034542,7]
[331370352,1720290644349,-500.0,0.00034542,7]
[331370353,1720290644369,-189339.207446,0.00034543,4]
[331370354,1720290644380,-10308.17960674,0.00034563,60]
[331370356,1720290644391,-7167.60019201,0.00034564,4]
[331370358,1720290644405,-311.20545213,0.00034564,4]
[331370359,1720290644420,-4250.73654338,0.00034564,4]
[331370362,1720290645611,-188.46261212,0.00030229,4]
[331370363,1720290645641,-2144.06113085,0.00031173,3]
[331370368,1720290645664,-976.37886915,0.00031173,3]
[331370371,1720290645689,-308.18507323,0.00032212,4]
[331370372,1720290645700,-5.34393567,0.00034564,4]
[331370375,1720290645712,-302.20670787,0.00034564,4]
[331370376,1720290645726,-3922.42835053,0.00034564,4]
[331370381,1720290645765,-1408.49997,0.00034564,4]
[331370511,1720290648557,-1294.43433178,0.00034564,4]
[331370512,1720290648570,-7456.79364286,0.00034564,4]
[331370513,1720290648585,-68550.35459697,0.00034564,4]
[331370514,1720290648631,-160.335385,0.00034564,7]
[331370515,1720290648643,-2879.0,0.0003457,2]
[331370516,1720290648664,-1434.44237247,0.00034592,4]
[331370517,1720290648675,-2420.55776569,0.0003463,4]
[331370518,1720290648686,-155.3707062,0.0003463,4]
[331370519,1720290648699,-1500.0,0.0003463,4]
[331370521,1720290648718,-695.64984296,0.0003463,4]
[331370523,1720290648734,-1039.06688618,0.00034634,2]
[331370525,1720290648744,-526.85124638,0.00034642,4]
[331370527,1720290648773,-281.0184868,0.00034642,4]
[331370528,1720290648784,-889.41142146,0.00034642,4]
[331370529,1720290648795,-808.0087546,0.00034669,4]
[331370530,1720290648823,-1255.64592156,0.0003467,4]
[331370531,1720290648834,-440.41891497,0.00034672,4]
[331370532,1720290648845,-285.68341675,0.00034672,4]
[331370533,1720290648862,-214.95606653,0.0003468,4]
[331370534,1720290648874,-184.13239825,0.0003468,4]
[331370535,1720290648896,-974.151394,0.00034702,4]
[331370536,1720290648909,-385.05765229,0.00034771,4]
[331370537,1720290648926,-503.09405394,0.00035622,2]
[331370538,1720290648939,-2836.46925312,0.00036,4]
[331370539,1720290648949,-164.83119203,0.00036229,4]
[331370540,1720290648959,-495.50543718,0.00036351,4]
[331370541,1720290648973,-181.89933047,0.00036732,4]
[331370542,1720290648985,-150.77383924,0.00036848,2]
[331370543,1720290648995,-250.11570644,0.00036848,2]
[331370544,1720290649006,-155.67984992,0.0003701,4]
[331370545,1720290649026,-2132.45671248,0.00037259,4]
[331370546,1720290649053,-156.03698731,0.00037259,4]
[331370547,1720290649079,-666.70382175,0.00037357,4]
[331370548,1720290649109,-360.56768716,0.00037357,4]
[331370549,1720290649124,-301.54767848,0.00037467,4]
[331370550,1720290649134,-154.77557542,0.00037587,4]
[331370551,1720290649149,-154.77557542,0.00037807,4]
[331370552,1720290649162,-184.43879915,0.00037899,4]
[331370553,1720290649171,-603.09535696,0.00038097,7]
[331370554,1720290649182,-166.74380429,0.00038737,4]
[331370555,1720290649200,-83501.18754497,0.00039,5]
[331370556,1720290649210,-1206.19071393,0.00039061,30]
[331370558,1720290649222,-668.67730428,0.00039067,2]
[331370560,1720290649258,-171.031023,0.00039394,2]
[331370561,1720290649272,-531.56332391,0.00039994,30]
[331370562,1720290649283,-3990.98413807,0.00039999,4]
[331370563,1720290649295,-6117.45093,0.0004,30]
[331370564,1720290649324,-245.37520907,0.00040278,4]
[331370565,1720290649338,-208.37564863,0.00040807,4]
[331370566,1720290649350,-529.85654432,0.00040807,4]
[331370567,1720290649395,-300.63400972,0.00040807,4]
[331370568,1720290649408,-9774.21117732,0.00041085,20]
[331370569,1720290649418,-160.0,0.00041197,3]
[331370570,1720290649429,-19266.52866414,0.00041415,31]
[331370571,1720290649441,-151.0,0.00041416,14]
[331370572,1720290649454,-151.0,0.00041416,14]
[331370573,1720290649470,-151.0,0.00041416,14]
[331370574,1720290649485,-151.0,0.00041416,14]
[331370575,1720290649496,-151.0,0.00041416,14]
[331370576,1720290649510,-151.0,0.00041416,14]
[331370577,1720290649526,-648.693252,0.00041416,14]
[331370578,1720290649538,-648.693252,0.00041416,14]
[331370579,1720290649551,-151.0,0.00041416,14]
[331370580,1720290649562,-151.0,0.00041416,14]
[331370581,1720290649589,-497.451558,0.00041416,14]
[331370582,1720290649609,-497.451558,0.00041416,14]
[331370583,1720290649655,-3878.211509,0.00041416,14]
[331370584,1720290649681,-151.0,0.00041416,14]
[331370585,1720290649691,-3878.211509,0.00041416,14]
[331370586,1720290649716,-151.0,0.00041416,14]
[331370587,1720290649739,-1087.261912,0.00041416,14]
[331370588,1720290649751,-1087.261912,0.00041416,14]
[331370589,1720290649762,-151.0,0.00041416,14]
[331370590,1720290649800,-151.0,0.00041416,14]
[331370591,1720290649811,-2672.246359,0.00041416,14]
[331370592,1720290649840,-215.541406,0.00041416,14]
[331370593,1720290649901,-6846.79439,0.00041416,14]
[331370594,1720290649915,-426.349162,0.00041416,14]
[331370595,1720290649926,-426.349162,0.00041416,14]
[331370596,1720290649950,-3615.17157893,0.00041416,14]
[331370597,1720290649982,-3231.62281107,0.00041416,14]
[331370598,1720290649996,-151.0,0.00041416,14]
[331370599,1720290650006,-151.0,0.00041416,14]
[331370600,1720290650017,-215.541406,0.00041416,14]
[331370601,1720290650027,-330.68609201,0.00041416,14]
[331370602,1720290650042,-1782.17619199,0.00041416,14]
[331370603,1720290650051,-2112.862284,0.00041416,14]
[331370604,1720290650076,-798.09159372,0.00041416,14]
[331370605,1720290650101,-241.21549328,0.00041416,14]
[331370606,1720290650124,-151.0,0.00041416,14]
[331370607,1720290650134,-128.21480172,0.00041416,14]
[331370609,1720290720460,32.54918592,0.00026474,60]
[331370641,1720291633432,-169.700582,0.00021096,2]
[331370642,1720291633465,-174.365209,0.00023931,2]
[331370643,1720291633498,-172.179743,0.00024205,2]
[331370644,1720291633539,-166.666666,0.00024388,2]
[331370645,1720291633569,-618.2814932,0.00024474,2]
[331370646,1720291633608,-166.666666,0.00025053,2]
[331370647,1720291633641,-87.0596408,0.00025498,2]
[331370648,1720291638130,-212.9403592,0.00025498,2]
[331370649,1720291638172,-2301.65189191,0.00025499,2]
[331370653,1720291719300,307.84,0.00011341,2]
[331370656,1720291753095,154.87576558,0.00011341,2]
[331370657,1720291754126,-7302.19042197,0.00022941,2]
[331370659,1720291778743,2397.79053515,0.00011341,2]
[331370660,1720291778770,2004.62180385,0.00011341,2]
[331370661,1720291790580,239.25593046,0.00011341,2]
[331370666,1720291802964,325.98502067,0.00013746,2]
[331370667,1720291803015,3401.1120612,0.00013746,2]
[331370668,1720291807362,3773.14321747,0.00011341,2]
[331370669,1720291811885,16242.33593585,0.00011341,2]
[331370671,1720291813936,154.77557542,0.00011341,2]
[331370672,1720291819877,16242.33593585,0.00011341,2]
[331370673,1720291824422,195.78789883,0.00013746,2]
[331370689,1720291839571,228.54407255,0.00011341,2]
[331370690,1720291841129,-333.95878176,0.00024642,2]
[331370691,1720291841145,-188.44846864,0.00024642,2]
[331370692,1720291841157,-22598.34810809,0.00025499,2]
[331370693,1720291841168,-166.666666,0.00025718,2]
[331370694,1720291841179,-190.9281156,0.00026373,2]
[331370695,1720291841212,-166.666666,0.00026383,2]
[331370696,1720291841223,-728.04,0.00026454,3]
[331370697,1720291841233,-2735.92,0.00026454,3]
[331370698,1720291841244,-77845.1840676,0.00026464,3]
[331370699,1720291841254,-364.01,0.00026464,3]
[331370701,1720291841312,-4173.5699611,0.00026474,2]
[331370703,1720291841325,-4710.72024946,0.00026574,2]
[331370707,1720291841380,-268.41032935,0.00026574,7]
[331370708,1720291841401,-2912.07,0.00026838,3]
[331370709,1720291841412,-1634.59229075,0.00026848,2]
[331370712,1720291841437,-166.666666,0.00027048,2]
[331370714,1720291841456,-728.02,0.00027174,3]
[331370716,1720291841467,-1456.04,0.00027184,3]
[331370718,1720291841507,-844.12159152,0.00027194,2]
[331370721,1720291841561,-169.700582,0.00027195,2]
[331370722,1720291841576,-500.0,0.00027397,2]
[331370724,1720291841600,-500.0,0.00027397,2]
[331370727,1720291841677,-500.0,0.00027397,2]
[331370729,1720291841696,-173.5807378,0.00027397,120]
[331370731,1720291841706,-908.54949828,0.00027399,2]
[331370733,1720291841716,-166.666666,0.00027712,2]
[331370734,1720291841745,-728.02,0.00027834,3]
[331370735,1720291841757,-364.0,0.00027834,3]
[331370738,1720291841814,-196.17477285,0.00027999,2]
[331370739,1720291841864,-183.95227844,0.00027999,2]
[331370741,1720291841904,-200.45143498,0.00027999,2]
[331370743,1720291841927,-175.1934109,0.00027999,2]
[331370746,1720291841957,-282.35870369,0.00028,2]
[331370748,1720291841995,-5824.14,0.00028208,3]
[331370750,1720291842028,-1456.04,0.00028544,3]
[331370754,1720291842061,-2912.08,0.00028554,3]
[331370763,1720291842152,-150.0,0.000288,2]
[331370764,1720291842168,-350.0,0.00029348,2]
[331370767,1720291842248,-2048.80897215,0.00029693,2]
[331370770,1720291842288,-193.18071048,0.00029772,2]
[331370772,1720291842301,-164.58703734,0.00029772,2]
[331370775,1720291842326,-182.27021757,0.00029772,2]
[331370776,1720291842336,-155.3008146,0.00029772,2]
[331370777,1720291842346,-267.9160542,0.00029772,2]
[331370778,1720291842358,-159.12412402,0.00029772,2]
[331370782,1720291842400,-154.77557542,0.00029772,2]
[331370783,1720291842411,-304.31871384,0.00029772,2]
[331370784,1720291842422,-60948.38193456,0.00029783,3]
[331370794,1720291842668,-596.92458521,0.00029783,3]
[331370803,1720291842846,-197.16559461,0.00026848,2]
[331370804,1720291842864,-934.55932162,0.00027194,2]
[331370805,1720291842898,-16103.93617158,0.00029783,3]
[331370807,1720291842950,-195.94137625,0.00029783,3]
[331370810,1720291842969,-154.77557542,0.00029793,2]
[331370812,1720291842981,-209.17634711,0.00029793,2]
[331370814,1720291842992,-318.617778,0.00029793,2]
[331370815,1720291843002,-93.48892322,0.00029793,2]
[331370816,1720291843015,-63.94494154,0.00029793,2]
[331370817,1720291843046,-303.61367715,0.00029793,2]
[331370818,1720291843072,-154.77557542,0.00029793,2]
[331370819,1720291843083,-233.81097976,0.00029803,2]
[331370822,1720291843114,-154.77557542,0.00029803,2]
[331370825,1720291843126,-949.12073475,0.00029803,2]
[331370829,1720291843178,-293.46281805,0.00029803,2]
[331370831,1720291843189,-293.46281805,0.00029803,2]
[331370833,1720291843204,-154.77557542,0.00029813,2]
[331370834,1720291843222,-425.48868556,0.00029813,2]
[331370836,1720291843232,-154.77557542,0.00029813,2]
[331370837,1720291843244,-154.77557542,0.00029813,2]
[331370838,1720291843256,-3130.83822867,0.00029813,4]
[331370840,1720291843309,-154.77557542,0.00029813,2]
[331370844,1720291843358,-154.77557542,0.00029813,2]
[331370846,1720291843369,-154.77557542,0.00029823,2]
[331370847,1720291843425,-182.63268152,0.00029823,2]
[331370848,1720291843435,-160.0,0.00029823,2]
[331370849,1720291843446,-182.63268152,0.00029823,2]
[331370851,1720291843464,-661.97621512,0.00029861,2]
[331370852,1720291843481,-300.30956818,0.0002987,2]
[331370858,1720291843564,-374.63942513,0.00029999,2]
[331370859,1720291843582,-576.08003937,0.00029999,2]
[331370861,1720291843592,-154.77557542,0.00029999,2]
[331370863,1720291843603,-642.9488218,0.0003,4]
[331370865,1720291843655,-495.50543718,0.0003,4]
[331370866,1720291843667,-257.4252364,0.00030229,4]
[331370867,1720291843677,-2048.80897215,0.00030886,2]
[331370868,1720291843696,-2048.80897215,0.00032078,2]
[331370870,1720291843706,-22227.25570541,0.0003248,4]
[331370873,1720291843758,-1437.39280895,0.0003248,4]
[331370874,1720291843771,-249.993024,0.0003248,4]
[331370879,1720291843888,8095.09198194,0.00013746,2]
[331370888,1720291845611,154.77557542,0.00013746,2]
[331370910,1720291850513,-2420.55776569,0.00026848,2]
[331370914,1720291850545,-844.12159152,0.00027184,2]
[331370920,1720291850642,-154.77557542,0.00029772,2]
[331370922,1720291850661,-154.77557542,0.00029793,2]
[331370923,1720291850672,-3130.83822867,0.00029813,4]
[331370924,1720291850682,-661.97621512,0.00029823,2]
[331370925,1720291850692,-5866.3495374,0.0003248,4]
[331370926,1720291850707,-11564.00000001,0.0003248,4]
[331370927,1720291850722,-36500.19299183,0.0003248,4]
[331370928,1720291850736,-151.0,0.0003249,7]
[331370929,1720291850750,-151.0,0.0003249,7]
[331370930,1720291850803,-366.162629,0.0003249,7]
[331370931,1720291850813,-366.162629,0.0003249,7]
[331370932,1720291850823,-1021.077981,0.0003249,7]
[331370933,1720291850842,-1021.077981,0.0003249,7]
[331370934,1720291850893,-151.0,0.0003249,7]
[331370935,1720291850905,-151.0,0.0003249,7]
[331370936,1720291850961,-151.0,0.0003249,7]
[331370937,1720291850999,-1983.630014,0.0003249,7]
[331370938,1720291851035,-1983.630014,0.0003249,7]
[331370939,1720291851045,-2839.239497,0.0003249,7]
[331370940,1720291851057,-2839.239497,0.0003249,7]
[331370941,1720291851067,-151.0,0.0003249,7]
[331370942,1720291851078,-151.0,0.0003249,7]
[331370943,1720291851121,-583.823927,0.0003249,7]
[331370944,1720291851146,-583.823927,0.0003249,7]
[331370945,1720291851192,-10308.17960674,0.000325,60]
[331370946,1720291851259,-511.41395898,0.00033101,2]
[331370947,1720291851271,-500.3492932,0.00033101,2]
[331370948,1720291851284,-221.58728046,0.00033101,2]
[331370949,1720291851297,-433.8034697,0.00033101,2]
[331370950,1720291851333,-3568.799904,0.00033101,7]
[331370951,1720291851360,-947.091589,0.00033101,7]
[331370952,1720291851437,-947.091589,0.00033101,7]
[331370953,1720291851449,-3568.799904,0.00033101,7]
[331370954,1720291851479,-411.89684739,0.0003327,7]
[331370955,1720291851572,-255.33354478,0.0003327,7]
[331370956,1720291851582,-500.0,0.0003327,7]
[331370957,1720291851593,-204.06745332,0.0003327,7]
[331370958,1720291851604,-2048.80897215,0.00033271,2]
[331370959,1720291851641,-169.700582,0.00033295,2]
[331370960,1720291851658,-2048.80897215,0.00034463,2]
[331370961,1720291851703,-1260.21268738,0.00034491,4]
[331370962,1720291851769,-214.95606653,0.00034517,4]
[331370963,1720291851784,-252.16904731,0.0003455,4]
[331370964,1720291851815,-151.0,0.00034554,7]
[331370965,1720291851825,-151.0,0.00034554,7]
[331370966,1720291851836,-151.0,0.00034554,7]
[331370967,1720291851847,-151.0,0.00034554,7]
[331370968,1720291851882,-151.0,0.00034554,7]
[331370969,1720291851954,-151.0,0.00034554,7]
[331370970,1720291851964,-151.0,0.00034554,7]
[331370971,1720291851975,-383.714246,0.00034554,7]
[331370972,1720291851988,-151.0,0.00034554,7]
[331370973,1720291852025,-383.714246,0.00034554,7]
[331370974,1720291852049,-151.0,0.00034554,7]
[331370975,1720291852059,-201.537266,0.00034554,7]
[331370976,1720291852070,-151.0,0.00034554,7]
[331370977,1720291852082,-201.537266,0.00034554,7]
[331370978,1720291852094,-151.0,0.00034554,7]
[331370979,1720291852106,-151.0,0.00034554,7]
[331370980,1720291852118,-151.0,0.00034554,7]
[331370981,1720291852128,-151.0,0.00034554,7]
[331370982,1720291852139,-962.96577273,0.00035,4]
[331370983,1720291852153,-531.56332391,0.00036,30]
[331370984,1720291852163,-77845.1840676,0.00036026,4]
[331370985,1720291852205,-6177.247279,0.00036036,7]
[331370986,1720291852237,-151.0,0.00036036,7]
[331370987,1720291852258,-6177.247279,0.00036036,7]
[331370988,1720291852269,-816.158066,0.00036036,7]
[331370989,1720291852319,-816.158066,0.00036036,7]
[331370990,1720291852391,-151.0,0.00036036,7]
[331370991,1720291852430,-151.0,0.00036036,7]
[331370992,1720291852465,-151.0,0.00036036,7]
[331370993,1720291852504,-366.162629,0.00036036,7]
[331370994,1720291852517,-366.162629,0.00036036,7]
[331370995,1720291852540,-1021.077981,0.00036036,7]
[331370996,1720291852551,-1021.077981,0.00036036,7]
[331370997,1720291852570,-151.0,0.00036036,7]
[331370998,1720291852593,-151.0,0.00036036,7]
[331370999,1720291852605,-151.0,0.00036036,7]
[331371000,1720291852641,-1983.630014,0.00036036,7]
[331371001,1720291852660,-1983.630014,0.00036036,7]
[331371002,1720291852671,-2839.239497,0.00036036,7]
[331371003,1720291852681,-2839.239497,0.00036036,7]
[331371004,1720291852709,-151.0,0.00036036,7]
[331371005,1720291852739,-151.0,0.00036036,7]
[331371006,1720291852773,-583.823927,0.00036036,7]
[331371007,1720291852783,-583.823927,0.00036036,7]
[331371008,1720291852799,-3568.799904,0.00036036,7]
[331371009,1720291852815,-947.091589,0.00036036,7]
[331371010,1720291852843,-947.091589,0.00036036,7]
[331371011,1720291852863,-3568.799904,0.00036036,7]
[331371012,1720291852873,-172.179743,0.00036307,2]
[331371013,1720291852889,-279.52736495,0.00037587,4]
[331371014,1720291852900,-279.52736495,0.00037587,4]
[331371015,1720291852936,-17000.0,0.00038965,3]
[331371016,1720291852946,-169.700582,0.00039394,2]
[331371017,1720291852994,-7622.35589579,0.00039697,4]
[331371018,1720291853033,-15000.0,0.0003987,2]
[331371019,1720291853045,-5058.16469769,0.00039987,3]
[331371020,1720291853055,-2378.38090316,0.0003999,4]
[331371021,1720291853076,-77845.1840676,0.0003999,5]
[331371022,1720291853087,-3568.799904,0.0003999,14]
[331371023,1720291853140,-947.091589,0.0003999,14]
[331371024,1720291853157,-947.091589,0.0003999,14]
[331371025,1720291853210,-3568.799904,0.0003999,14]
[331371026,1720291853223,-19163.44878423,0.0004,30]
[331371027,1720291853445,-836.55121648,0.0004,30]
[331371028,1720291853455,-151.0,0.0004,14]
[331371029,1720291853471,-151.0,0.0004,14]
[331371030,1720291853482,-159.244579,0.0004,14]
[331371031,1720291853492,-163.877985,0.0004,14]
[331371032,1720291853502,-163.877985,0.0004,14]
[331371033,1720291853532,-786.217817,0.0004,14]
[331371034,1720291853542,-786.217817,0.0004,14]
[331371035,1720291853611,-151.0,0.0004,14]
[331371036,1720291853643,-151.0,0.0004,14]
[331371037,1720291853673,-151.0,0.0004,14]
[331371038,1720291853686,-151.0,0.0004,14]
[331371039,1720291853700,-151.0,0.0004,14]
[331371040,1720291853710,-151.0,0.0004,14]
[331371041,1720291853782,-383.714246,0.0004,14]
[331371045,1720291853838,-151.0,0.0004,14]
[331371046,1720291853854,-383.714246,0.0004,14]
[331371047,1720291853865,-151.0,0.0004,14]
[331371048,1720291853875,-201.537266,0.0004,14]
[331371049,1720291853885,-151.0,0.0004,14]
[331371050,1720291853908,-201.537266,0.0004,14]
[331371051,1720291853921,-151.0,0.0004,120]
[331371052,1720291853930,-151.0,0.0004,14]
[331371053,1720291853943,-151.0,0.0004,14]
[331371054,1720291853954,-2732.9308514,0.0004,14]
[331371055,1720291853996,-3444.3164276,0.0004,14]
[331371056,1720291854009,-188.713146,0.0004,14]
[331371057,1720291854051,-7128.61077395,0.0004,120]
[331371058,1720291855816,3773.14321747,0.00013746,2]
[331371059,1720291860494,195.78789883,0.00013746,2]
[331371060,1720291864274,12209.83085481,0.00013746,2]
[331371061,1720291865393,154.77557542,0.00013746,2]
[331371062,1720291867558,1463.29635585,0.00013746,2]
[331371063,1720291873047,4716.14621599,0.00011341,2]
[331371064,1720291875246,369.38118446,0.00013746,2]
[331371065,1720291880230,201.59639428,0.00013746,2]
[331371066,1720291881976,157.43386476,0.00013746,2]
[331371067,1720291882318,577.05473084,0.00013746,2]
[331371068,1720291885109,154.99208337,0.00013746,2]
[331371069,1720291885416,4697.34273195,0.00011341,2]
[331371070,1720291886099,2288.57783993,0.00013746,4]
[331371071,1720291887457,154.77557542,0.00013746,2]
[331371072,1720291888995,934.55932162,0.00013746,2]
[331371073,1720291889394,159.43687006,0.00013746,2]
[331371074,1720291890119,213.2155615,0.00011341,2]
[331371075,1720291891933,238.83361041,0.00013746,2]
[331371076,1720291892978,160.06183721,0.00013746,2]
[331371077,1720291894861,154.77557542,0.00013746,2]
[331371078,1720291895519,318.617778,0.00013746,2]
[331371079,1720291896048,949.12073475,0.00015,2]
[331371080,1720291896086,2712.227158,0.00013746,2]
[331371081,1720291896991,661.97621512,0.00013746,2]
[331371082,1720291899660,1500.0,0.00013746,2]
[331371083,1720291900609,154.77557542,0.00013746,2]
[331371084,1720291901545,835.83233281,0.00015,2]
[331371085,1720291905758,154.77557542,0.00013746,2]
[331371086,1720291905988,844.12159152,0.00013746,2]
[331371087,1720291906904,293.46281805,0.00013746,2]
[331371088,1720291914484,154.77557542,0.00013746,2]
[331371089,1720291916233,200.17702241,0.00013746,2]
[331371090,1720291917336,154.77557542,0.00013746,2]
[331371091,1720291918604,176.74654804,0.00013746,2]
[331371092,1720291921964,293.46281805,0.00013746,2]
[331371093,1720291922095,187.6858195,0.00013746,2]
[331371094,1720291925485,517.80580605,0.00013746,2]
[331371095,1720291926701,2833.91780134,0.00015,2]
[331371096,1720291931550,318.617778,0.00013746,2]
[331371097,1720291932555,154.77557542,0.00013746,2]
[331371098,1720291932924,510.1563651,0.00013746,2]
[331371099,1720291937979,934.55932162,0.00013746,2]
[331371113,1720291940687,154.77557542,0.00013746,2]
[331371114,1720291941375,458.17298887,0.00013746,2]
[331371115,1720291947044,844.12159152,0.00013746,2]
[331371116,1720291949049,778.8435668,0.00013746,2]
[331371117,1720291953380,491.17654936,0.00015,2]
[331371118,1720291953549,172.99543679,0.00013746,2]
[331371119,1720291954081,948.28588659,0.00015,2]
[331371120,1720291955495,425.48868556,0.00013746,2]
[331371121,1720291955766,155.16219653,0.00013746,2]
[331371122,1720291963521,182.58952313,0.00013746,2]
[331371123,1720291964144,2101.88311219,0.00011341,2]
[331371124,1720291968853,293.46281805,0.00013746,2]
[331371125,1720291970798,789.77698638,0.00014,2]
[331371126,1720291970993,187.6858195,0.00013746,2]
[331371127,1720291972242,523.68456754,0.00013746,2]
[331371128,1720291973898,210.3580098,0.00013746,2]
[331371129,1720291976742,209.15804517,0.00013746,2]